Cogmind - Beta 12 @@@ ROGUE MODE // 2023.12.17 @ 13:43:12 Player: Dosh Result: Destroyed by S-10 Pest with Light Assault Rifle Performance ------------- Evolutions (0) 0 Regions Visited (2) 400 Robots Destroyed (21) 105 Value Destroyed (504) 504 Prototype IDs (0) 0 Alien Tech Used (0) 0 Bonus (0) 0 TOTAL SCORE: 1009 Bonus ------- None Cogmind --------- Core Integrity 0/250 Matter 260/300 Energy 100/100 System Corruption 11% Temperature Cool (0) Movement Treading (240) Ox1 Location -10/Mines Parts ------- > --- POWER (1) -------- (None) > --- PROPULSION (2) --- Light Treads > --- UTILITY (2) ------ Large Storage Unit Core Shielding > --- WEAPON (2) ------- Hammer > --- INVENTORY (15) --- Light Ion Engine Light Ion Engine Light Nuclear Core Light Treads Light Treads Wheel Compact Wheel Improved Heat Sink Huge Storage Unit High-capacity Matter Pod (200) Light Armor Plating Light Armor Plating Light Armor Plating Light Armor Plating Shield Generator Peak State ------------ > --- POWER ------------ Ion Engine > --- PROPULSION ------- Light Treads Light Treads > --- UTILITY ---------- Large Storage Unit Light Armor Plating > --- WEAPON ----------- Medium Laser Light Assault Rifle > --- INVENTORY -------- Light Ion Engine Light Ion Engine Wheel Compact Wheel Huge Storage Unit High-capacity Matter Pod Core Shielding Shield Generator Hammer [Rating: 8] Favorites ----------- Power Ion Engine Engine Ion Engine Propulsion Light Treads Treads Light Treads Utility Large Storage Unit Storage Large Storage Unit Protection Light Armor Plating Weapon Light Assault Rifle Energy Gun Medium Laser Ballistic Gun Light Assault Rifle Impact Weapon Hammer Build | -11 -10 -10 ------- Run | Jun Mat Min Slots Evolved . | . . . Power . | . . . Propulsion . | . . . Utility . | . . . Weapon . | . . . Parts Attached 19 | 7 9 3 Power 1 | 1 . . Engine 1 | 1 . . Core . | . . . Reactor . | . . . Propulsion 4 | 2 2 . Treads 4 | 2 2 . Leg . | . . . Wheel . | . . . Hover . | . . . Flight . | . . . Utility 6 | 1 4 1 Device . | . . . Storage 2 | 1 1 . Processor . | . . . Hackware . | . . . Protection 4 | . 3 1 Artifact . | . . . Weapon 8 | 3 3 2 Energy Gun 3 | 1 1 1 Energy Cannon . | . . . Ballistic Gun 4 | 2 2 . Ballistic Cannon . | . . . Launcher . | . . . Special Weapon . | . . . Impact Weapon 1 | . . 1 Slashing Weapon . | . . . Piercing Weapon . | . . . Special Melee Weapon . | . . . Unidentified Prototypes . | . . . Corrupted Parts 1 | . . 1 System Corruption 11 | . . 11 Parts Lost 6 | . 2 4 Power 1 | . . 1 Propulsion 1 | . . 1 Utility . | . . . Weapon 4 | . 2 2 Highest Loss Streak 2 | . 2 2 To Critical Strikes . | . . . Average Slot Usage (%) 95 | . 97 87 Engine 13 | . 14 13 Treads 25 | . 28 17 Storage 14 | . 14 14 Protection 12 | . 12 14 Energy Gun 9 | . 7 13 Ballistic Gun 14 | . 20 . Impact Weapon 3 | . . 13 Naked Turns . | . . . Heaviest Build 32 | 13 31 32 Greatest Support 40 | 40 40 40 Greatest Overweight (x) 1 | . . 1 Average Overweight (x) . | . . . Largest Inventory Capacity 15 | 8 15 15 Average Capacity 13 | 7 13 15 Most Carried 15 | 3 14 15 Average Carried 9 | 1 7 14 Final Capacity 15 | 8 15 15 Final Carried 15 | 3 14 15 Class Distribution -------------------- 100% | Mutant Dominant Class ---------------- Mutant | -10/Materials Mutant | -10/Mines Resources | -11 -10 -10 ----------- Run | Jun Mat Min Matter Collected 740 | 242 359 139 Remotely . | . . . Salvage Created 740 | . 527 213 Parts 34 | . 31 3 Haulers Intercepted 1 | . 1 . Recyclers Shooed 6 | . 6 . Parts Field Recycled . | . . . Retrieved Matter . | . . . Parts Self-Destructed . | . . . Prevented . | . . . Kills | -11 -10 -10 ------- Run | Jun Mat Min Combat Hostiles Destroyed 14 | . 10 4 Melee 2 | . . 2 Guns 10 | . 10 . Classes Destroyed 6 | . 6 . Worker 2 | . 2 . Hauler 1 | . 1 . Recycler 2 | . 1 1 Watcher 2 | . 2 . Swarmer 3 | . 3 . Grunt 11 | . 7 4 Best Kill Streak 3 | . 3 2 Combat Bots Only 3 | . 3 2 Max Kills in Single Turn 1 | . 1 1 Gunslinging . | . . . Exploded . | . . . Melee 1 | . . 1 Uniques/NPCs Destroyed . | . . . Combat | -11 -10 -10 -------- Run | Jun Mat Min Damage Taken 1323 | . 731 592 Core 253 | . 156 97 Absorbed by Shields . | . . . Redirected to Shielding 12 | . 8 4 Core Remaining (%) 100 | 100 . . Volleys Fired 90 | . 83 7 Largest 2 | . 2 2 Hottest 70 | . 70 70 Shots Fired 172 | . 159 13 Gun 172 | . 159 13 Cannon . | . . . Launcher . | . . . Special . | . . . Kinetic 128 | . 122 6 Thermal 44 | . 37 7 Explosive . | . . . Electromagnetic . | . . . Robot Hit Streak 10 | . 10 7 Robot Miss Streak 6 | . 6 3 Penetration Max . | . . . Secondary Targets . | . . . Shots Hit Robots 128 | . 98 30 Core Hits 43 | . 38 5 Critical Kills . | . . . Critical Parts Destroyed 2 | . . 2 Critical Strikes 4 | . 1 3 Burn 2 | . 1 1 Smash 2 | . . 2 Melee Attacks 27 | . . 27 Impact 27 | . . 27 Slashing . | . . . Piercing . | . . . Sneak Attacks 2 | . . 2 Combat Hostiles . | . . . Follow-up Attacks . | . . . Damage Inflicted 1680 | . 1051 629 Guns 1062 | . 1004 58 Cannons . | . . . Explosions . | . . . Melee 571 | . . 571 Ramming 47 | . 47 . Kinetic 728 | . 696 32 Thermal 334 | . 308 26 Explosive . | . . . Electromagnetic . | . . . Impact 571 | . . 571 Slashing . | . . . Piercing . | . . . Highest Corruption 11 | . . 11 Average Corruption 11 | . . 11 Corruption Purged . | . . . Corruption Blocked . | . . . Effects 15 | . . 15 Message Errors 4 | . . 4 Matter Fused 4 | . . 4 Heat Flow Errors 1 | . . 1 Energy Discharges 3 | . . 3 Parts Rejected 1 | . . 1 Data Loss (minor) 1 | . . 1 Data Loss (major) 1 | . . 1 Overload Shots . | . . . Overflow Damage 73 | . . 73 Projectiles . | . . . Explosions . | . . . Melee 73 | . . 73 Knockbacks . | . . . Impact . | . . . Kinetic . | . . . Secondary . | . . . Self-Inflicted Damage . | . . . Shots . | . . . Rammed 9 | . 9 . Targets Rammed 9 | . 9 . Kicked . | . . . Crushed . | . . . Highest Temperature 414 | . 414 216 Average Temperature 115 | . 119 97 Received Heat Transfer 570 | . 285 285 Effects 1 | . 1 . Energy Bleed 1 | . 1 . Siege Activations . | . . . Robots Corrupted . | . . . Combat Hostiles . | . . . Parts Fried 4 | . . 4 Impact Corruptions 7 | . . 7 Robots Melted . | . . . Combat Hostiles . | . . . Parts Melted 5 | . 4 1 Heat Transferred 1110 | . 962 148 Parts Sabotaged . | . . . Parts Stolen . | . . . Parts Stripped . | . . . Power Chain Reactions . | . . . Missiles Intercepted . | . . . Alert | -11 -10 -10 ------- Run | Jun Mat Min Peak Influence 158 | . 158 103 Initial 13 | . . 13 Average 52 | . 50 66 Maximum Alert Level . | . . . Low Security (%) 100 | 100 100 100 Level 1 . | . . . Level 2 . | . . . Level 3 . | . . . Level 4 . | . . . Level 5 . | . . . High Security . | . . . Max Security . | . . . Squads Dispatched 1 | . 1 . Investigation 1 | . 1 . Extermination . | . . . Reinforcement . | . . . Assault . | . . . Garrison . | . . . Intercept . | . . . Searches Triggered . | . . . Construction Impeded . | . . . Haulers Reinforced . | . . . Active Scanning Responses . | . . . Cargo Convoy Interrupts . | . . . Stealth | -11 -10 -10 --------- Run | Jun Mat Min Distress Signals 1 | . 1 . Communications Jammed . | . . . Distress Signals . | . . . Times Spotted 26 | . 18 8 Peak Tracking Total 3 | . 3 2 Tactical Retreats 3 | . 1 2 Traps | -11 -10 -10 ------- Run | Jun Mat Min Traps Triggered 1 | . 1 . Indirectly . | . . . Trap Hack Attempts . | . . . Triggered . | . . . Disarmed . | . . . Reprogrammed . | . . . Reused . | . . . Traps Extracted . | . . . Installed . | . . . Triggered . | . . . Machines | -11 -10 -10 ---------- Run | Jun Mat Min Machines Disabled . | . . . Max in Single Turn . | . . . Machines Repaired . | . . . Machines Sabotaged . | . . . Overloaded Fab Kills . | . . . Hacking | -11 -10 -10 --------- Run | Jun Mat Min Machines Accessed 2 | . 2 . Terminals 2 | . 2 . Fabricators . | . . . Repair Stations . | . . . Recycling Units . | . . . Scanalyzers . | . . . Garrison Access . | . . . Total Hacks 5 | . 5 . Successful 2 | . 2 . Failed 3 | . 3 . Catastrophic 2 | . 2 . Database Lockouts . | . . . Manual 5 | . 5 . Terminals 5 | . 5 . Fabricators . | . . . Repair Stations . | . . . Recycling Units . | . . . Scanalyzers . | . . . Garrison Access . | . . . Terminal Hacks 2 | . 2 . Robot Analysis 2 | . 2 . Fabricator Hacks . | . . . Repair Station Hacks . | . . . Recycling Unit Hacks . | . . . Scanalyzer . | . . . Garrison Access Hacks . | . . . Unauthorized Hacks . | . . . Terminals . | . . . Fabricators . | . . . Repair Stations . | . . . Recycling Units . | . . . Scanalyzers . | . . . Garrison Access . | . . . Data Cores Recovered . | . . . Used . | . . . Hacking Detections 2 | . 2 . Full Trace Events 1 | . 1 . Feedback Events . | . . . Feedback Blocked . | . . . Robot Schematics Acquired . | . . . Robots Built . | . . . Authchips . | . . . Time . | . . . Total Robot Build Rating . | . . . Part Schematics Acquired . | . . . Parts Built . | . . . Authchips . | . . . Time . | . . . Total Part Build Rating . | . . . Parts Repaired . | . . . Time . | . . . Parts Recycled . | . . . Recycled Matter . | . . . Retrieved Matter . | . . . Retrieved Components . | . . . Parts Scanalyzed . | . . . Part Schematics Acquired . | . . . Parts Damaged . | . . . Bothacking | -11 -10 -10 ------------ Run | Jun Mat Min Used RIF Installer . | . . . Robots Hacked . | . . . Non-combat . | . . . Combat . | . . . Robot Hacks Applied . | . . . Relay Couplers Released . | . . . Fabnet Peak Effective % . | . . . Robots Rewired . | . . . Allies Hacked . | . . . Hacks Repelled . | . . . Allies | -11 -10 -10 -------- Run | Jun Mat Min Total Allies . | . . . Largest Group . | . . . Highest-Rated Group . | . . . Highest-Rated Ally . | . . . Total Orders . | . . . Ally Attacks . | . . . Total Damage . | . . . Kills . | . . . Allies Corrupted . | . . . Allies Melted . | . . . Intel | -11 -10 -10 ------- Run | Jun Mat Min Robot Analysis Total 2 | . 2 . Derelict Logs Recovered 2 | . . 2 Drone Launches . | . . . Drone Recoveries . | . . . Exploration | -11 -10 -10 ------------- Run | Jun Mat Min Turns Passed 1918 | 81 1333 504 Spaces Moved 891 | 44 668 179 Core 2 | 2 . . Treads 889 | 42 668 179 Legs . | . . . Wheels . | . . . Hover . | . . . Flight . | . . . Fastest Speed 50 | 50 160 160 Average Speed 172 | 155 160 225 Slowest Speed 240 | 160 160 240 Overloaded Moves . | . . . Propulsion Burnouts . | . . . Robots Hopped . | . . . Cave-ins Triggered . | . . . Exploration Rate (%) 46 | 4 96 38 Regions Visited 2 Branch Regions 1 Pre-discovered Areas 2 | . . 2 Known Exits Taken . | . . . Unknown Exits Taken 2 | 1 1 . Scrap Searched . | . . . Spaces Dug . | . . . Terrain Destroyed . | . . . Melee . | . . . Projectile . | . . . AOE . | . . . Terrain Rammed . | . . . Walls Destroyed . | . . . Machines Disabled . | . . . Actions | -11 -10 -10 --------- Run | Jun Mat Min Total 1055 | 53 782 220 Wait 6 | . 4 2 Move 889 | 43 667 179 Hop . | . . . Pick Up 14 | 3 9 2 Fast Attach 8 | 6 1 1 Attach 3 | . 2 1 Detach . | . . . Swap 8 | 1 6 1 Drop 1 | . 1 . Fire 90 | . 83 7 Melee 27 | . . 27 Ram . | . . . Kick . | . . . Crush 9 | . 9 . Escape Stasis . | . . . Rewire . | . . . Trap . | . . . Miscellaneous . | . . . Route ------- -11/Junkyard -10/Materials (discovered 5 exits: [*Mat x3] / [*Min x2]) -10/Mines (discovered 1 exit: [*Mat]) History --------- Turn | Location | Event 29 | -11/Junkyard | Discovered new exit (range 16) 82 | -11/Junkyard | Entered Materials 232 | -10/Materials | Discovered new exit (range 14) 315 | -10/Materials | Build established: Mutant 402 | -10/Materials | Discovered new exit (range 15) 694 | -10/Materials | Core integrity fell below 50% 775 | -10/Materials | Discovered new exit (range 14) 926 | -10/Materials | Discovered new exit (range 16) 1162 | -10/Materials | Discovered new exit (range 16) 1415 | -10/Materials | Entered Mines 1473 | -10/Mines | Core integrity fell below 20% 1568 | -10/Mines | System corruption reached 10% 1766 | -10/Mines | Learned location of Mines (-9) 1774 | -10/Mines | Learned location of Storage (-8) 1892 | -10/Mines | Discovered new exit (range 15) 1919 | -10/Mines | Destroyed by S-10 Pest with Light Assault Rifle Last Messages --------------- 01736_ System corrupted: Energy discharge (-62). 01766_ Acquired derelict log, extracted data. World map updated: -9/Mines. 01770_ System corrupted: Heat flow error (+137). 01774_ Acquired derelict log, extracted data. World map updated: -8/Storage. 01804_ K-01 Serf collects debris. 01817_ 3D/#IYU%RC2LKUIPLZ,|DW6EY 01821_ K-01 Serf collects debris. 01834_ System corrupted: Matter fused (-7). 01834_ Sneak attack on T-07 Excavator. 01834_ Destroyed Wheel. 01834_ T-07 Excavator system corrupted by crushing effect. 01859_ |,Y/JBKLZPT7DQVF> 3E:5ZYM&8NE3RDGX>V|MC 01876_ System corrupted: Matter fused (-10). 01892_ EXIT=FOUND 01897_ System corrupted: Matter fused (-8). 01899_ S-10 Pest destroyed. 01903_ Ion Engine destroyed. 01914_ System corrupted: Sml. Laser rejected. Map ----- +----------------------------------------------------+ | #???????????????????????????????????????????????? | | ###?????????????????????????????????????????????? | | #?????????????????????????????????????????????? | | ##?????????????????????????????????????????????? | | #??????????????????????????????????????????????? | | #??????????????? #?????????????????????????????? | | ##???????####???# ##????????????????????????????? | | #???????? #??? #????????????????????????????? | | #????????# #?? ####?????????????????????????? | | #????????# #?? ??????????????????????????? | | #????????# #?# ???????????????????????????? | | #????????# ## #????????????????????????????? | | ##??????## ##???????????????????????????? | | #??????# #???????????????????????????? | | ##?????# ????????????????????????????? | | ####### #?????????????????????????????????? | | #??????????????????????????????????? | | ####### #??????????????????????????????????? | | #?????## ##?????????????????????????????????? | | #??????# ###########???????????????????????? | | # #??????# #???????#???????????????? | | # #?????## ######### #???### ###?????????????? | | # #?????# #???????# #?? k #?????????????? | | #?????# #??????## ### #?????????????? | | #?????# #?????## s%* #?????????????? | | ####?????## ##????## @# #?????????????? | | ??????????####?????# #?????? #?????????????? | | ?????????????????# r ##?????????????????????? | | ????????????????#/ * #??????????????????????? | | ????????????????# * ##??????????????????????? | | ?????????????? ## #???????????????????????? | | ???????????? #?# #???????????????????????? | | ????????????# ######??# #???????????????????????? | | ????????????#?????????# ????????????????????????? | | #?????????????????????# ????????????????????????? | | #?????????????????????# ????????????????????????? | | ?????????????????????? ????????????????????????? | | ??????????????????????